[Event "Live Chess"]
[Site "Chess.com"]
[Date "2024.06.02"]
[Round "-"]
[White "Demyan7777"]
[Black "Bunny55"]
[Result "1-0"]
[WhiteElo "1878"]
[BlackElo "1160"]
[TimeControl "300"]
[EndTime "7:56:04 PDT"]
[Termination "Demyan7777 won by resignation"]

1. e4 {[%clk 0:04:56.7]} 1... c5 {[%clk 0:04:57.4]} 2. Nf3 {[%clk 0:04:52.3]}
2... d6 {[%clk 0:04:40.8]} 3. d4 {[%clk 0:04:50.9]} 3... cxd4 {[%clk 0:04:39.4]}
4. Nxd4 {[%clk 0:04:50.6]} 4... Nf6 {[%clk 0:04:38.3]} 5. Nc3 {[%clk 0:04:50]}
5... g6 {[%clk 0:04:37.1]} 6. f3 {[%clk 0:04:43]} 6... Bg7 {[%clk 0:04:34.9]} 7.
Be3 {[%clk 0:04:41.9]} 7... O-O {[%clk 0:04:33.6]} 8. Bc4 {[%clk 0:04:40.3]}
8... Nc6 {[%clk 0:04:32.6]} 9. Qd2 {[%clk 0:04:39.1]} 9... Bd7 {[%clk
0:04:30.5]} 10. O-O-O {[%clk 0:04:37.3]} 10... Rc8 {[%clk 0:04:21.7]} 11. Kb1
{[%clk 0:04:33.6]} 11... Na5 {[%clk 0:04:19.9]} 12. Bb3 {[%clk 0:04:32.3]} 12...
Nxb3 {[%clk 0:04:18.3]} 13. Nxb3 {[%clk 0:04:29.1]} 13... a6 {[%clk 0:04:17]}
14. h4 {[%clk 0:04:27.4]} 14... b5 {[%clk 0:04:15.4]} 15. h5 {[%clk 0:04:26.1]}
15... a5 {[%clk 0:04:03.7]} 16. hxg6 {[%clk 0:04:23.7]} 16... fxg6 {[%clk
0:04:02]} 17. Bh6 {[%clk 0:04:22.7]} 17... Rxc3 {[%clk 0:03:56.4]} 18. Qxc3
{[%clk 0:04:13.4]} 18... Bxh6 {[%clk 0:03:50.8]} 19. Rxh6 {[%clk 0:04:11.7]}
19... a4 {[%clk 0:03:45.7]} 20. Nd4 {[%clk 0:04:08.6]} 20... e5 {[%clk
0:03:37.3]} 21. Nc6 {[%clk 0:04:05.9]} 21... Bxc6 {[%clk 0:03:35.6]} 22. Qxc6
{[%clk 0:04:05.5]} 22... Qe7 {[%clk 0:03:33.5]} 23. Qxd6 {[%clk 0:04:04.1]}
23... Qxd6 {[%clk 0:03:31.9]} 24. Rxd6 {[%clk 0:04:03.6]} 24... Kg7 {[%clk
0:03:23.3]} 25. Rh1 {[%clk 0:04:00.4]} 25... Rc8 {[%clk 0:03:19.2]} 26. c3
{[%clk 0:03:56]} 26... Nh5 {[%clk 0:03:08.3]} 27. Rd7+ {[%clk 0:03:53.1]} 27...
Kf6 {[%clk 0:03:03.8]} 28. g4 {[%clk 0:03:51.9]} 1-0

[Event "Live Chess"]
[Site "Chess.com"]
[Date "2024.06.02"]
[Round "-"]
[White "ProfessorChess101"]
[Black "Frankie_Badacsonyi"]
[Result "1-0"]
[WhiteElo "2740"]
[BlackElo "2368"]
[TimeControl "300"]
[EndTime "7:56:07 PDT"]
[Termination "ProfessorChess101 won by resignation"]

1. d4 {[%clk 0:04:56]} 1... Nf6 {[%clk 0:04:57.1]} 2. c4 {[%clk 0:04:54.7]} 2...
e6 {[%clk 0:04:56.6]} 3. Nc3 {[%clk 0:04:54.3]} 3... Bb4 {[%clk 0:04:55.6]} 4.
Nf3 {[%clk 0:04:53.3]} 4... c5 {[%clk 0:04:52.9]} 5. e3 {[%clk 0:04:51]} 5...
Nc6 {[%clk 0:04:48.7]} 6. Bd2 {[%clk 0:04:49.5]} 6... cxd4 {[%clk 0:04:45.9]} 7.
exd4 {[%clk 0:04:45.5]} 7... d5 {[%clk 0:04:44.7]} 8. c5 {[%clk 0:04:39]} 8...
O-O {[%clk 0:04:37.8]} 9. Bd3 {[%clk 0:04:34]} 9... b6 {[%clk 0:04:33.7]} 10. a3
{[%clk 0:04:27.4]} 10... Bxc3 {[%clk 0:04:31.7]} 11. Bxc3 {[%clk 0:04:27.3]}
11... bxc5 {[%clk 0:04:27.4]} 12. dxc5 {[%clk 0:04:27.2]} 12... e5 {[%clk
0:03:47.7]} 13. Bb5 {[%clk 0:04:22.7]} 13... Bd7 {[%clk 0:03:38.9]} 14. Bxc6
{[%clk 0:04:18.1]} 14... Bxc6 {[%clk 0:03:38.8]} 15. Nxe5 {[%clk 0:04:17.5]}
15... Re8 {[%clk 0:03:37.1]} 16. O-O {[%clk 0:04:15.3]} 16... Rc8 {[%clk
0:03:26.4]} 17. Qd4 {[%clk 0:03:53.6]} 1-0

[Event "Live Chess"]
[Site "Chess.com"]
[Date "2024.06.02"]
[Round "-"]
[White "lyricalschemes"]
[Black "Plimsol"]
[Result "0-1"]
[WhiteElo "2217"]
[BlackElo "2374"]
[TimeControl "300"]
[EndTime "7:56:27 PDT"]
[Termination "Plimsol won by resignation"]

1. e4 {[%clk 0:04:57.4]} 1... c5 {[%clk 0:04:56.5]} 2. Nf3 {[%clk 0:04:56.2]}
2... d6 {[%clk 0:04:55.8]} 3. Bb5+ {[%clk 0:04:55.2]} 3... Nd7 {[%clk
0:04:54.1]} 4. Bxd7+ {[%clk 0:04:54.9]} 4... Qxd7 {[%clk 0:04:51.6]} 5. O-O
{[%clk 0:04:54.6]} 5... b6 {[%clk 0:04:51.1]} 6. Re1 {[%clk 0:04:53.8]} 6... e6
{[%clk 0:04:45.5]} 7. c3 {[%clk 0:04:52.7]} 7... Bb7 {[%clk 0:04:42.7]} 8. d4
{[%clk 0:04:51.1]} 8... cxd4 {[%clk 0:04:41.7]} 9. cxd4 {[%clk 0:04:50]} 9...
Nf6 {[%clk 0:04:40.9]} 10. Nc3 {[%clk 0:04:49.5]} 10... Be7 {[%clk 0:04:38.8]}
11. Bg5 {[%clk 0:04:48.3]} 11... O-O {[%clk 0:04:34.6]} 12. e5 {[%clk
0:04:47.4]} 12... Nd5 {[%clk 0:04:31.6]} 13. Bxe7 {[%clk 0:04:37.5]} 13... Nxc3
{[%clk 0:04:21.3]} 14. bxc3 {[%clk 0:04:31.4]} 14... Qxe7 {[%clk 0:04:19.2]} 15.
Rc1 {[%clk 0:04:23.5]} 15... Rfd8 {[%clk 0:04:15.2]} 16. Qe2 {[%clk 0:04:16.6]}
16... Bxf3 {[%clk 0:04:10.3]} 17. Qxf3 {[%clk 0:04:14.2]} 17... Rac8 {[%clk
0:04:10.2]} 18. exd6 {[%clk 0:04:07.8]} 18... Qxd6 {[%clk 0:04:09.2]} 19. Qe4
{[%clk 0:04:00.5]} 19... Qd5 {[%clk 0:04:04.2]} 20. Kf1 {[%clk 0:03:54.5]} 20...
Qxa2 {[%clk 0:03:59.1]} 21. c4 {[%clk 0:03:51.1]} 21... Rxc4 {[%clk 0:03:53.3]}
22. Ra1 {[%clk 0:03:45.9]} 22... Qd2 {[%clk 0:03:39]} 23. Rxa7 {[%clk
0:03:43.5]} 23... Qxd4 {[%clk 0:03:32.5]} 24. Qf3 {[%clk 0:03:39.1]} 24... Qf6
{[%clk 0:03:22.5]} 25. Qxf6 {[%clk 0:03:30.1]} 25... gxf6 {[%clk 0:03:21.3]} 26.
Rb1 {[%clk 0:03:29.4]} 26... Rc2 {[%clk 0:03:15]} 27. g3 {[%clk 0:03:20.4]}
27... Rdd2 {[%clk 0:03:10.8]} 28. Rxb6 {[%clk 0:03:19.7]} 28... Rxf2+ {[%clk
0:03:09.4]} 29. Ke1 {[%clk 0:03:19.4]} 29... Rxh2 {[%clk 0:03:07.1]} 30. Kd1
{[%clk 0:03:15.2]} 30... Rcg2 {[%clk 0:03:03.3]} 0-1

[Event "Live Chess"]
[Site "Chess.com"]
[Date "2024.06.02"]
[Round "-"]
[White "MagnersCarlsberg2870"]
[Black "grillage"]
[Result "0-1"]
[WhiteElo "1770"]
[BlackElo "1859"]
[TimeControl "300"]
[EndTime "7:56:48 PDT"]
[Termination "grillage won by resignation"]

1. d4 {[%clk 0:04:57.7]} 1... e6 {[%clk 0:04:56.3]} 2. Nd2 {[%clk 0:04:55.6]}
2... Nf6 {[%clk 0:04:51.9]} 3. e3 {[%clk 0:04:53.9]} 3... c5 {[%clk 0:04:44.1]}
4. c3 {[%clk 0:04:51.8]} 4... cxd4 {[%clk 0:04:41.9]} 5. exd4 {[%clk 0:04:50.6]}
5... Be7 {[%clk 0:04:39.6]} 6. Bd3 {[%clk 0:04:49.7]} 6... b6 {[%clk 0:04:37.4]}
7. Ngf3 {[%clk 0:04:48.3]} 7... Ba6 {[%clk 0:04:36.5]} 8. Qe2 {[%clk 0:04:46.3]}
8... Bxd3 {[%clk 0:04:35.1]} 9. Qxd3 {[%clk 0:04:45.5]} 9... O-O {[%clk
0:04:34.5]} 10. h4 {[%clk 0:04:41]} 10... d6 {[%clk 0:04:29.3]} 11. Ng5 {[%clk
0:04:36.3]} 11... h6 {[%clk 0:04:26.9]} 12. Ndf3 {[%clk 0:04:35]} 12... Nbd7
{[%clk 0:04:13.3]} 13. Ne4 {[%clk 0:04:27.1]} 13... e5 {[%clk 0:04:09.6]} 14. g4
{[%clk 0:04:24.9]} 14... exd4 {[%clk 0:04:06.3]} 15. g5 {[%clk 0:04:23.3]} 15...
Nxe4 {[%clk 0:03:54.6]} 16. Qxe4 {[%clk 0:04:19.3]} 16... Nc5 {[%clk 0:03:53.4]}
17. Qd3 {[%clk 0:04:15.5]} 17... Nxd3+ {[%clk 0:03:51.6]} 0-1

[Event "Live Chess"]
[Site "Chess.com"]
[Date "2024.06.02"]
[Round "-"]
[White "LL220284LL"]
[Black "DavrosLight"]
[Result "1-0"]
[WhiteElo "2467"]
[BlackElo "802"]
[TimeControl "300"]
[EndTime "7:56:50 PDT"]
[Termination "LL220284LL won by checkmate"]

1. e3 {[%clk 0:04:57]} 1... d5 {[%clk 0:04:56.2]} 2. b4 {[%clk 0:04:55.6]} 2...
a6 {[%clk 0:04:53.9]} 3. Bb2 {[%clk 0:04:54.6]} 3... Nc6 {[%clk 0:04:52.7]} 4.
a3 {[%clk 0:04:53.3]} 4... e5 {[%clk 0:04:46.5]} 5. d3 {[%clk 0:04:47.1]} 5...
Nf6 {[%clk 0:04:31.6]} 6. Nf3 {[%clk 0:04:44.8]} 6... Bg4 {[%clk 0:04:22.4]} 7.
Be2 {[%clk 0:04:41.7]} 7... e4 {[%clk 0:04:15.1]} 8. dxe4 {[%clk 0:04:39.4]}
8... Nxe4 {[%clk 0:04:03]} 9. Nbd2 {[%clk 0:04:35.5]} 9... Bxf3 {[%clk
0:03:49.6]} 10. Bxf3 {[%clk 0:04:32.7]} 10... Qh4 {[%clk 0:03:45.3]} 11. O-O
{[%clk 0:04:25.4]} 11... Bd6 {[%clk 0:03:27.6]} 12. g3 {[%clk 0:04:21.6]} 12...
Nxg3 {[%clk 0:03:13.4]} 13. hxg3 {[%clk 0:04:18.4]} 13... Qg5 {[%clk 0:02:50.8]}
14. Bg2 {[%clk 0:04:13.4]} 14... O-O-O {[%clk 0:02:45.2]} 15. Nf3 {[%clk
0:04:10.8]} 15... Qg4 {[%clk 0:02:32.5]} 16. Nd4 {[%clk 0:04:07.1]} 16... Qxd1
{[%clk 0:02:09.8]} 17. Raxd1 {[%clk 0:04:07]} 17... Nxd4 {[%clk 0:02:08.7]} 18.
Bxd4 {[%clk 0:04:05]} 18... c6 {[%clk 0:02:02.2]} 19. Bxg7 {[%clk 0:04:03.4]}
19... Rhg8 {[%clk 0:01:56.6]} 20. Bf6 {[%clk 0:04:02.9]} 20... Rde8 {[%clk
0:01:50.9]} 21. c4 {[%clk 0:04:01.7]} 21... c5 {[%clk 0:01:48.7]} 22. Rxd5
{[%clk 0:03:59.2]} 22... Re6 {[%clk 0:01:38.1]} 23. Bc3 {[%clk 0:03:55]} 23...
cxb4 {[%clk 0:01:32.3]} 24. axb4 {[%clk 0:03:53.4]} 24... Reg6 {[%clk
0:01:23.8]} 25. c5 {[%clk 0:03:51.2]} 25... Bxg3 {[%clk 0:01:17.7]} 26. fxg3
{[%clk 0:03:51.1]} 26... Rxg3 {[%clk 0:01:16.7]} 27. Rf2 {[%clk 0:03:50]} 27...
h5 {[%clk 0:01:12.2]} 28. Kh2 {[%clk 0:03:47.5]} 28... h4 {[%clk 0:01:05.4]} 29.
Bh3+ {[%clk 0:03:46.4]} 29... Kc7 {[%clk 0:00:49.8]} 30. Be5+ {[%clk 0:03:44.4]}
30... Kc6 {[%clk 0:00:48.9]} 31. Rd4 {[%clk 0:03:40.3]} 31... Rxe3 {[%clk
0:00:40.3]} 32. Bd7# {[%clk 0:03:37.8]} 1-0

[Event "Live Chess"]
[Site "Chess.com"]
[Date "2024.06.02"]
[Round "-"]
[White "davigator"]
[Black "E2E4colchester"]
[Result "1-0"]
[WhiteElo "2336"]
[BlackElo "1162"]
[TimeControl "300"]
[EndTime "7:57:09 PDT"]
[Termination "davigator won by resignation"]

1. e4 {[%clk 0:04:57.8]} 1... e5 {[%clk 0:04:52.7]} 2. Nf3 {[%clk 0:04:15.8]}
2... Nc6 {[%clk 0:04:47.3]} 3. Bc4 {[%clk 0:04:14.6]} 3... d6 {[%clk 0:04:42.6]}
4. c3 {[%clk 0:04:11.5]} 4... Nf6 {[%clk 0:04:40.2]} 5. d3 {[%clk 0:04:08.2]}
5... g6 {[%clk 0:04:36.8]} 6. O-O {[%clk 0:04:06.8]} 6... Bg7 {[%clk 0:04:35.7]}
7. Re1 {[%clk 0:04:05.8]} 7... O-O {[%clk 0:04:33.9]} 8. h3 {[%clk 0:04:05.4]}
8... Re8 {[%clk 0:04:33]} 9. a4 {[%clk 0:04:04.5]} 9... Be6 {[%clk 0:04:32.1]}
10. Bb5 {[%clk 0:04:01.4]} 10... Qd7 {[%clk 0:04:28.7]} 11. d4 {[%clk
0:03:55.9]} 11... a6 {[%clk 0:04:27.8]} 12. Bxc6 {[%clk 0:03:53.3]} 12... bxc6
{[%clk 0:04:25.8]} 13. dxe5 {[%clk 0:03:51.5]} 13... dxe5 {[%clk 0:04:23.2]} 14.
Qe2 {[%clk 0:03:49.4]} 14... Nh5 {[%clk 0:04:12.6]} 15. Na3 {[%clk 0:03:47]}
15... Nf4 {[%clk 0:04:00.2]} 16. Bxf4 {[%clk 0:03:45.9]} 16... exf4 {[%clk
0:03:59.2]} 17. Rad1 {[%clk 0:03:44.5]} 17... Qe7 {[%clk 0:03:57.6]} 18. Nd4
{[%clk 0:03:35.5]} 18... c5 {[%clk 0:03:49.4]} 19. Ndc2 {[%clk 0:03:31.6]} 19...
a5 {[%clk 0:03:46]} 20. Nb5 {[%clk 0:03:27.7]} 20... c6 {[%clk 0:03:41.7]} 21.
Nd6 {[%clk 0:03:24.4]} 21... Red8 {[%clk 0:03:35.6]} 22. Nc4 {[%clk 0:03:23.1]}
22... Rd7 {[%clk 0:03:17.7]} 23. Rxd7 {[%clk 0:02:58.5]} 23... Bxd7 {[%clk
0:03:12]} 24. N2a3 {[%clk 0:02:48.4]} 24... Be5 {[%clk 0:02:56.5]} 25. f3 {[%clk
0:02:46.7]} 25... f5 {[%clk 0:02:36.1]} 26. exf5 {[%clk 0:02:42.2]} 26... Bd4+
{[%clk 0:02:08.1]} 27. cxd4 {[%clk 0:02:40.3]} 27... Qxe2 {[%clk 0:02:06.7]} 28.
Rxe2 {[%clk 0:02:39.6]} 28... cxd4 {[%clk 0:02:05.6]} 29. fxg6 {[%clk
0:02:31.5]} 29... hxg6 {[%clk 0:02:04.6]} 30. Re7 {[%clk 0:02:29.2]} 30... Bf5
{[%clk 0:02:02.5]} 31. Ne5 {[%clk 0:02:20.9]} 31... d3 {[%clk 0:01:58.9]} 32.
Nac4 {[%clk 0:02:20.1]} 32... Rd8 {[%clk 0:01:56.2]} 33. Rc7 {[%clk 0:02:12.5]}
33... d2 {[%clk 0:01:54.8]} 34. Nxd2 {[%clk 0:02:11.7]} 34... Rxd2 {[%clk
0:01:52.9]} 35. Nxc6 {[%clk 0:02:10]} 35... Rxb2 {[%clk 0:01:47.9]} 36. Nxa5
{[%clk 0:02:06.3]} 36... Rb1+ {[%clk 0:01:46.2]} 37. Kh2 {[%clk 0:02:04.9]}
37... Ra1 {[%clk 0:01:39]} 38. Rc4 {[%clk 0:02:03.5]} 38... Be6 {[%clk
0:01:37.7]} 39. Rxf4 {[%clk 0:02:01.3]} 39... Kg7 {[%clk 0:01:35.2]} 40. Nb7
{[%clk 0:01:55.7]} 40... Bf5 {[%clk 0:01:32.1]} 41. Nd6 {[%clk 0:01:53.3]} 41...
Bd7 {[%clk 0:01:30.6]} 42. Rf7+ {[%clk 0:01:50.5]} 42... Kh6 {[%clk 0:01:28.5]}
43. Rxd7 {[%clk 0:01:50.4]} 1-0

[Event "Live Chess"]
[Site "Chess.com"]
[Date "2024.06.02"]
[Round "-"]
[White "elephantgerrald"]
[Black "JanMur7"]
[Result "0-1"]
[WhiteElo "852"]
[BlackElo "2283"]
[TimeControl "300"]
[EndTime "7:57:11 PDT"]
[Termination "JanMur7 won on time"]

1. e4 {[%clk 0:04:58.4]} 1... e5 {[%clk 0:04:58]} 2. Nf3 {[%clk 0:04:57.4]} 2...
Nc6 {[%clk 0:04:57.2]} 3. Bc4 {[%clk 0:04:54.9]} 3... Nf6 {[%clk 0:04:55.5]} 4.
Nc3 {[%clk 0:04:53.2]} 4... Bc5 {[%clk 0:04:53.7]} 5. O-O {[%clk 0:04:51.3]}
5... d6 {[%clk 0:04:52.1]} 6. Ng5 {[%clk 0:04:41.4]} 6... O-O {[%clk 0:04:48.3]}
7. Nf3 {[%clk 0:04:30.9]} 7... Bg4 {[%clk 0:04:45.5]} 8. d3 {[%clk 0:04:29.3]}
8... Nd4 {[%clk 0:04:44.5]} 9. Be3 {[%clk 0:04:24.4]} 9... Nxf3+ {[%clk
0:04:41.9]} 10. gxf3 {[%clk 0:04:20.3]} 10... Bh3 {[%clk 0:04:41.3]} 11. Re1
{[%clk 0:04:18.4]} 11... Nh5 {[%clk 0:04:39.5]} 12. f4 {[%clk 0:04:04.7]} 12...
Nxf4 {[%clk 0:04:31.6]} 13. Bxf4 {[%clk 0:03:48.7]} 13... exf4 {[%clk
0:04:28.1]} 14. Qh5 {[%clk 0:03:35]} 14... Qd7 {[%clk 0:04:16.5]} 15. e5 {[%clk
0:03:22.1]} 15... g6 {[%clk 0:04:06.3]} 16. Qh4 {[%clk 0:03:14.2]} 16... dxe5
{[%clk 0:04:01.7]} 17. Nd5 {[%clk 0:02:53.9]} 17... Qg4+ {[%clk 0:03:32.8]} 18.
Qxg4 {[%clk 0:02:50]} 18... Bxg4 {[%clk 0:03:32.7]} 19. Nxc7 {[%clk 0:02:46.6]}
19... Rac8 {[%clk 0:03:19.8]} 20. Nb5 {[%clk 0:02:34.8]} 20... a6 {[%clk
0:03:14.2]} 21. Na3 {[%clk 0:02:09]} 21... Bxa3 {[%clk 0:03:10.6]} 22. bxa3
{[%clk 0:02:07.4]} 22... b5 {[%clk 0:03:10.1]} 23. Bd5 {[%clk 0:01:45]} 23...
Rfe8 {[%clk 0:02:57.7]} 24. c4 {[%clk 0:01:21.5]} 24... bxc4 {[%clk 0:02:51.8]}
25. dxc4 {[%clk 0:01:02.8]} 25... Be6 {[%clk 0:02:47.9]} 26. Bxe6 {[%clk
0:00:11]} 26... Rxe6 {[%clk 0:02:45.3]} 27. Rac1 {[%clk 0:00:09.6]} 27... f6
{[%clk 0:02:44.3]} 28. Re4 {[%clk 0:00:08.3]} 28... Rec6 {[%clk 0:02:43.5]} 29.
a4 {[%clk 0:00:06.4]} 29... Kf7 {[%clk 0:02:42.6]} 30. Kg2 {[%clk 0:00:05.7]}
30... Ke6 {[%clk 0:02:42.5]} 31. f3 {[%clk 0:00:04.1]} 31... g5 {[%clk
0:02:41.5]} 32. h3 {[%clk 0:00:04]} 32... f5 {[%clk 0:02:41.3]} 33. Kf2 {[%clk
0:00:02.6]} 33... Rxc4 {[%clk 0:02:41.1]} 34. Rcxc4 {[%clk 0:00:01.4]} 34...
fxe4 {[%clk 0:02:38.9]} 35. Rxc8 {[%clk 0:00:00.4]} 35... e3+ {[%clk 0:02:38.4]}
0-1

[Event "Live Chess"]
[Site "Chess.com"]
[Date "2024.06.02"]
[Round "-"]
[White "FlyingChessKestrel13"]
[Black "Queensandpawns"]
[Result "1/2-1/2"]
[WhiteElo "2058"]
[BlackElo "2256"]
[TimeControl "300"]
[EndTime "7:57:11 PDT"]
[Termination "Game drawn by agreement"]

1. e4 {[%clk 0:04:54.4]} 1... e5 {[%clk 0:04:58.1]} 2. Nf3 {[%clk 0:04:53.3]}
2... Nf6 {[%clk 0:04:58]} 3. d4 {[%clk 0:04:48.8]} 3... exd4 {[%clk 0:04:55.9]}
4. e5 {[%clk 0:04:48.1]} 4... Nd5 {[%clk 0:04:54.6]} 5. Qxd4 {[%clk 0:04:46.3]}
5... Nb6 {[%clk 0:04:52.6]} 6. Nc3 {[%clk 0:04:43.6]} 6... Nc6 {[%clk
0:04:52.5]} 7. Qe4 {[%clk 0:04:39.2]} 7... Bc5 {[%clk 0:04:41]} 8. Bd3 {[%clk
0:04:32.9]} 8... Nb4 {[%clk 0:04:37.3]} 9. O-O {[%clk 0:04:31.5]} 9... Nxd3
{[%clk 0:04:34.3]} 10. cxd3 {[%clk 0:04:30.7]} 10... O-O {[%clk 0:04:31.7]} 11.
d4 {[%clk 0:04:29.9]} 11... Be7 {[%clk 0:04:30]} 12. d5 {[%clk 0:04:27.3]} 12...
d6 {[%clk 0:04:28.3]} 13. Bf4 {[%clk 0:04:23.4]} 13... dxe5 {[%clk 0:04:26.4]}
14. Bxe5 {[%clk 0:04:22]} 14... Bf6 {[%clk 0:04:24.4]} 15. Rfd1 {[%clk 0:04:18]}
15... Re8 {[%clk 0:04:16.6]} 16. Bxf6 {[%clk 0:04:14]} 16... gxf6 {[%clk
0:04:13.8]} 17. Qd4 {[%clk 0:04:08.2]} 17... Bf5 {[%clk 0:04:11.6]} 18. Qf4
{[%clk 0:04:03]} 18... Bg6 {[%clk 0:04:09.8]} 19. h4 {[%clk 0:03:56.3]} 19... h5
{[%clk 0:04:03]} 20. g4 {[%clk 0:03:47.9]} 20... hxg4 {[%clk 0:04:01.3]} 21.
Qxg4 {[%clk 0:03:46.7]} 21... Qd7 {[%clk 0:04:00.9]} 1/2-1/2

[Event "Live Chess"]
[Site "Chess.com"]
[Date "2024.06.02"]
[Round "-"]
[White "DJ_Lambton"]
[Black "Duke_of_Bebington"]
[Result "1/2-1/2"]
[WhiteElo "1793"]
[BlackElo "1579"]
[TimeControl "300"]
[EndTime "7:57:18 PDT"]
[Termination "Game drawn by agreement"]

1. c4 {[%clk 0:04:59.4]} 1... c6 {[%clk 0:04:58.9]} 2. g3 {[%clk 0:04:58.5]}
2... d5 {[%clk 0:04:58.1]} 3. Nf3 {[%clk 0:04:58]} 3... e6 {[%clk 0:04:57.5]} 4.
Bg2 {[%clk 0:04:57]} 4... Bd6 {[%clk 0:04:57.2]} 5. O-O {[%clk 0:04:56.3]} 5...
Ne7 {[%clk 0:04:56.9]} 6. b3 {[%clk 0:04:55.8]} 6... O-O {[%clk 0:04:56.3]} 7.
Bb2 {[%clk 0:04:55.5]} 7... b6 {[%clk 0:04:52.5]} 8. d3 {[%clk 0:04:54.5]} 8...
Bb7 {[%clk 0:04:52.2]} 9. Nbd2 {[%clk 0:04:52.4]} 9... Nd7 {[%clk 0:04:51.6]}
10. e4 {[%clk 0:04:49.3]} 10... dxc4 {[%clk 0:04:42.3]} 11. dxc4 {[%clk
0:04:44.1]} 11... e5 {[%clk 0:04:41.6]} 12. Qe2 {[%clk 0:04:36.8]} 12... Ng6
{[%clk 0:04:40.2]} 13. Rfd1 {[%clk 0:04:34.8]} 13... Nf6 {[%clk 0:04:39.5]} 14.
Nxe5 {[%clk 0:04:31]} 14... Nxe5 {[%clk 0:04:37.1]} 15. Bxe5 {[%clk 0:04:29.6]}
15... Bxe5 {[%clk 0:04:36.4]} 16. Rac1 {[%clk 0:04:29.1]} 16... Qe7 {[%clk
0:04:27.7]} 17. f4 {[%clk 0:04:27.3]} 17... Bd4+ {[%clk 0:04:24.9]} 18. Kh1
{[%clk 0:04:26.8]} 18... c5 {[%clk 0:04:21.8]} 19. e5 {[%clk 0:04:25.3]} 19...
Bxg2+ {[%clk 0:04:17.1]} 20. Kxg2 {[%clk 0:04:25.2]} 20... Qb7+ {[%clk 0:04:11]}
21. Nf3 {[%clk 0:04:24.6]} 21... Nd7 {[%clk 0:04:09.9]} 22. e6 {[%clk
0:04:21.7]} 22... fxe6 {[%clk 0:04:05.5]} 23. Qxe6+ {[%clk 0:04:21.6]} 23... Kh8
{[%clk 0:04:04.9]} 24. Re1 {[%clk 0:04:19.1]} 24... Nf6 {[%clk 0:04:02.6]} 25.
Rcd1 {[%clk 0:04:11.7]} 25... Rae8 {[%clk 0:04:00.2]} 26. Qf5 {[%clk 0:04:09.6]}
1/2-1/2

[Event "Live Chess"]
[Site "Chess.com"]
[Date "2024.06.02"]
[Round "-"]
[White "blunderabit"]
[Black "StoreySniper"]
[Result "0-1"]
[WhiteElo "1767"]
[BlackElo "2489"]
[TimeControl "300"]
[EndTime "7:57:22 PDT"]
[Termination "StoreySniper won by resignation"]

1. c4 {[%clk 0:04:56]} 1... g6 {[%clk 0:04:58.1]} 2. Nc3 {[%clk 0:04:52.5]} 2...
Bg7 {[%clk 0:04:57.6]} 3. g3 {[%clk 0:04:51.1]} 3... d6 {[%clk 0:04:56.8]} 4.
Bg2 {[%clk 0:04:49.6]} 4... e5 {[%clk 0:04:56.3]} 5. e3 {[%clk 0:04:47.8]} 5...
f5 {[%clk 0:04:55.6]} 6. Nge2 {[%clk 0:04:45.2]} 6... Nf6 {[%clk 0:04:53.7]} 7.
d3 {[%clk 0:04:40.9]} 7... O-O {[%clk 0:04:52.8]} 8. O-O {[%clk 0:04:33.7]} 8...
Nc6 {[%clk 0:04:51]} 9. b3 {[%clk 0:04:30.2]} 9... g5 {[%clk 0:04:48.3]} 10. Qd2
{[%clk 0:04:26.4]} 10... Kh8 {[%clk 0:04:44.6]} 11. f4 {[%clk 0:04:24.6]} 11...
gxf4 {[%clk 0:04:42.8]} 12. gxf4 {[%clk 0:04:16.6]} 12... Rg8 {[%clk 0:04:41]}
13. Kh1 {[%clk 0:04:14.2]} 13... Ng4 {[%clk 0:04:36.1]} 14. Qe1 {[%clk
0:03:43.2]} 14... Nb4 {[%clk 0:04:26.9]} 15. Qd2 {[%clk 0:02:35.6]} 15... Qh4
{[%clk 0:04:22.2]} 16. h3 {[%clk 0:02:32.5]} 16... Nf2+ {[%clk 0:04:15.2]} 17.
Kh2 {[%clk 0:02:29.3]} 17... Nbxd3 {[%clk 0:04:06.6]} 18. Ba3 {[%clk 0:02:11.6]}
18... Bf6 {[%clk 0:03:57.5]} 19. Nd5 {[%clk 0:01:50.8]} 19... Rxg2+ {[%clk
0:03:55.7]} 20. Kxg2 {[%clk 0:01:44.3]} 20... Qxh3+ {[%clk 0:03:54.2]} 0-1

[Event "Live Chess"]
[Site "Chess.com"]
[Date "2024.06.02"]
[Round "-"]
[White "Frankie_Badacsonyi"]
[Black "Bunny55"]
[Result "1-0"]
[WhiteElo "2368"]
[BlackElo "1160"]
[TimeControl "300"]
[EndTime "7:57:47 PDT"]
[Termination "Frankie_Badacsonyi won by resignation"]

1. Nf3 {[%clk 0:04:58.3]} 1... Nf6 {[%clk 0:04:47.8]} 2. g3 {[%clk 0:04:58.2]}
2... g6 {[%clk 0:04:46.1]} 3. Bg2 {[%clk 0:04:58.1]} 3... Bg7 {[%clk 0:04:44.5]}
4. O-O {[%clk 0:04:58]} 4... O-O {[%clk 0:04:42.3]} 5. c4 {[%clk 0:04:57.9]}
5... d6 {[%clk 0:04:40.4]} 6. Nc3 {[%clk 0:04:57.8]} 6... e5 {[%clk 0:04:39.3]}
7. d4 {[%clk 0:04:57.1]} 7... exd4 {[%clk 0:04:35.6]} 8. Nxd4 {[%clk 0:04:57]}
8... Nc6 {[%clk 0:04:34.3]} 9. Nxc6 {[%clk 0:04:56]} 9... bxc6 {[%clk 0:04:33]}
10. Bxc6 {[%clk 0:04:55.9]} 10... Rb8 {[%clk 0:04:29]} 11. Bg2 {[%clk
0:04:55.5]} 11... h6 {[%clk 0:04:21.8]} 12. b3 {[%clk 0:04:51.8]} 12... Nh7
{[%clk 0:04:21]} 13. Bb2 {[%clk 0:04:50.1]} 13... a5 {[%clk 0:04:15.3]} 14. Qd2
{[%clk 0:04:49.4]} 14... a4 {[%clk 0:04:13.4]} 15. Nxa4 {[%clk 0:04:48.4]} 15...
Bd7 {[%clk 0:04:11.6]} 16. Bxg7 {[%clk 0:04:46.7]} 16... Kxg7 {[%clk 0:04:08.4]}
17. Nc3 {[%clk 0:04:46.3]} 17... Re8 {[%clk 0:04:06.6]} 18. Rfd1 {[%clk
0:04:44.7]} 18... Kg8 {[%clk 0:04:05.6]} 19. e3 {[%clk 0:04:44.2]} 19... c5
{[%clk 0:04:03.9]} 20. Qxd6 {[%clk 0:04:42.1]} 1-0